fUSD/lending_fUSD_20240215
["ID","MTS","AMOUNT","RATE_DAILY","PERIOD"]
[314121523,1708001443703,-270.45073933,0.00039452,7]
[314121524,1708001443713,-500.0,0.00039452,7]
[314121525,1708001443722,-518.51315706,0.00039452,7]
[314121526,1708001443731,-504.64361516,0.00039452,7]
[314121527,1708001443741,-531.41171715,0.00039452,7]
[314121528,1708001443750,-527.27684306,0.00039452,7]
[314121529,1708001443760,-500.0,0.00039452,7]
[314121530,1708001443769,-500.0,0.00039452,7]
[314121531,1708001443779,-500.0,0.00039452,7]
[314121532,1708001443789,-500.0,0.00039452,7]
[314121533,1708001443798,-550.33874667,0.00039452,7]
[314121534,1708001443807,-500.0,0.00039452,7]
[314121535,1708001443817,-197.36579644,0.00039452,7]
[314121536,1708001443826,-500.0,0.00039452,7]
[314121537,1708001443836,-534.20158857,0.00039452,7]
[314121538,1708001443845,-577.38135072,0.00039452,7]
[314121539,1708001443854,-500.0,0.00039452,7]
[314121540,1708001443863,-500.0,0.00039452,7]
[314121541,1708001443872,-500.0,0.00039452,7]
[314121542,1708001443881,-500.0,0.00039452,7]
[314121543,1708001443891,-530.03824509,0.00039452,7]
[314121544,1708001443900,-500.0,0.00039452,7]
[314121545,1708001443909,-498.001,0.00039452,7]
[314121546,1708001443918,-500.0,0.00039452,7]
[314121547,1708001443928,-500.0,0.00039452,7]
[314121548,1708001443937,-506.24009431,0.00039452,7]
[314121549,1708001443946,-513.92416439,0.00039452,7]
[314121550,1708001443956,-500.0,0.00039452,7]
[314121551,1708001443965,-512.91372318,0.00039452,7]
[314121552,1708001443974,-500.0,0.00039452,7]
[314121553,1708001443984,-544.6820342,0.00039452,7]
[314121554,1708001443993,-492.76572824,0.00039452,7]
[314121555,1708001444222,-7.23427176,0.00039452,7]
[314121556,1708001444231,-500.0,0.00039452,7]
[314121557,1708001444240,-491.54449466,0.00039452,7]
[314121558,1708001444250,-500.0,0.00039452,7]
[314121559,1708001444260,-525.36046276,0.00039452,7]
[314121560,1708001444269,-543.87724071,0.00039452,7]
[314121561,1708001444278,-500.0,0.00039452,7]
[314121562,1708001444287,-500.0,0.00039452,7]
[314121563,1708001444296,-500.0,0.00039452,7]
[314121564,1708001444305,-500.0,0.00039452,7]
[314121565,1708001444314,-500.0,0.00039452,7]
[314121566,1708001444323,-500.0,0.00039452,7]
[314121567,1708001444332,-425.59167309,0.00039452,7]
[314121572,1708001470146,436933.28185889,0.00023,2]
[314121573,1708001570593,-1093.3358176,0.0002509,2]
[314121574,1708001570616,-530.42485167,0.0002509,2]
[314121575,1708001570758,-275.55617254,0.0002549,2]
[314121576,1708001570783,-4196.36864791,0.00026,2]
[314121577,1708001570812,-23251.6497212,0.000264,2]
[314121578,1708001570836,-186.7420485,0.000275,2]
[314121579,1708001570859,-70465.92274058,0.000281,2]
[314121580,1708001575185,-7292.90550084,0.000263,2]
[314121581,1708001575223,-10111.08069274,0.000281,2]
[314121582,1708001575255,-152.11669873,0.00031,30]
[314121583,1708001575290,-7657.55931575,0.00031,2]
[314121584,1708001579961,74786.33779194,0.0002913,2]
[314121585,1708001585603,-100000.0,0.0002913,2]
[314121586,1708001600193,-100000.0,0.0002913,2]
[314121587,1708001605431,-62063.18402541,0.0002913,2]
[314121589,1708001724282,-269.06572221,0.000241,2]
[314121590,1708001724304,-326.70134282,0.0002442,2]
[314121591,1708001724328,-238.34381878,0.00025,2]
[314121592,1708001724350,-202.20465831,0.00026,2]
[314121593,1708001724374,-1752.40621785,0.00029,15]
[314121594,1708001724396,-593.97506832,0.000301,2]
[314121595,1708001745588,-206.0,0.00031999,2]
[314121596,1708001745610,-2448.2900775,0.00032125,2]
[314121597,1708001745632,-168.0,0.00033,2]
[314121598,1708001745655,-6041.61748374,0.00033,2]
[314121599,1708001745680,-5658.2514232,0.00033975,10]
[314121600,1708002014811,-200.0,0.0002985,2]
[314121601,1708002220146,-7053.60221491,0.00031,3]
[314121602,1708002220172,-2924.8055804,0.00033975,10]
[314121603,1708002220194,-184.93149327,0.0003401,2]
[314121604,1708002220217,-206.0,0.0003411,2]
[314121605,1708002220240,-696.24,0.00034338,2]
[314121606,1708002220265,-1800.0,0.00035,36]
[314121612,1708002618198,-661.42,0.00033477,2]
[314121613,1708002618225,-2406.73568715,0.00033975,10]
[314121614,1708002618249,-158.4239103,0.00034989,2]
[314121615,1708002618273,-150.0,0.00034999,2]
[314121616,1708002618296,-900.0,0.00035,36]
[314121617,1708002628507,-100000.0,0.00035,3]
[314121629,1708002631947,-1092.0,0.00035,3]
[314121630,1708002631956,-1993.92608726,0.0003509,2]
[314121631,1708002631968,-334.84098344,0.0003509,2]
[314121632,1708002631979,-3125.75820977,0.0003509,2]
[314121633,1708002631990,-6162.72890632,0.0003509,2]
[314121634,1708002632003,-1960.71779761,0.0003509,2]
[314121635,1708002632015,-650.99351737,0.0003509,2]
[314121636,1708002632036,-1713.03735611,0.0003509,2]
[314121638,1708002632086,-2983.90038546,0.0003509,2]
[314121640,1708002632098,-1703.85428632,0.0003509,2]
[314121642,1708002632109,-265.0000001,0.0003509,2]
[314121645,1708002632128,-1766.82280398,0.0003509,2]
[314121652,1708002633048,-4080.49095556,0.0003509,2]
[314121657,1708002637970,-374.1596757,0.00035163,2]
[314121658,1708002637981,-726.6703243,0.00035163,2]
[314121659,1708002637990,-250.0,0.00035181,2]
[314121660,1708002637999,-1031.32760561,0.00035284,2]
[314121661,1708002638029,-1088.27239439,0.00035284,2]
[314121662,1708002638038,-457.38525814,0.00035444,2]
[314121663,1708002638048,-981.41214179,0.00035444,2]
[314121664,1708002638089,-1270.41460312,0.00035444,2]
[314121665,1708002638100,-2103.3787534,0.00035444,2]
[314121666,1708002638152,-656.36656359,0.00035444,2]
[314121667,1708002638163,-18431.04267996,0.00035444,2]
[314121668,1708002638173,-250.0,0.00035489,2]
[314121669,1708002638182,-250.0,0.00035506,111]
[314121670,1708002638191,-244.41,0.00035727,2]
[314121671,1708002638222,-661.42,0.00035741,2]
[314121672,1708002638239,-152.79601926,0.0003591,5]
[314121674,1708002638249,-400.30973861,0.00036,7]
[314121675,1708002638258,-150.0,0.00036,2]
[314121676,1708002638267,-167.73,0.00036154,2]
[314121677,1708002638277,-169.31,0.00036166,2]
[314121678,1708002638286,-1106.83057247,0.000362,2]
[314121679,1708002638296,-870.73,0.00036206,2]
[314121681,1708002638305,-342.0,0.0003623,2]
[314121683,1708002638314,-2000.0,0.00036232,2]
[314121685,1708002638323,-600.0,0.00036232,2]
[314121687,1708002638333,-207.74,0.00036249,2]
[314121689,1708002638342,-150.0,0.00036276,2]
[314121700,1708002638471,-206.0,0.00036347,2]
[314121701,1708002638481,-1721.0,0.00036407,2]
[314121702,1708002638490,-204.41,0.00036438,2]
[314121703,1708002638499,-1100.83,0.00036464,2]
[314121704,1708002638512,-739.97115363,0.00036502,2]
[314121705,1708002638521,-14602.81965994,0.00036502,2]
[314121707,1708002638529,-237.4609211,0.00036561,4]
[314121709,1708002638539,-141913.9221,0.0003658,2]
[314121711,1708002638548,-31057.86132398,0.0003668,30]
[314121713,1708002638557,-155.0,0.000369,2]
[314121715,1708002638566,-151.94,0.00036949,2]
[314121717,1708002638575,-3611.68904468,0.00037,21]
[314121719,1708002638585,-800.0924007,0.00037,3]
[314121721,1708002638593,-400.0,0.00037026,2]
[314121723,1708002638603,-739.9711536,0.00037191,2]
[314121725,1708002638611,-14602.81965989,0.00037191,2]
[314121727,1708002638620,-151.94,0.00037196,2]
[314121729,1708002638629,-151.94,0.00037442,2]
[314121731,1708002638638,-151.94,0.00037688,2]
[314121732,1708002638647,-36938.45208228,0.00037699,2]
[314121735,1708002638659,-2614.7562519,0.00037699,2]
[314121761,1708002640369,-420.34867602,0.00033975,10]
[314121762,1708002640378,-2329.65162398,0.00037699,2]
[314121763,1708002640425,-1799.86623104,0.00037699,2]
[314121786,1708002642816,-1096.6831118,0.00037699,2]
[314121787,1708002642828,-1161.57770233,0.00037699,2]
[314121788,1708002643081,-1367.80188262,0.00037699,2]
[314121789,1708002643106,-264.1135013,0.00037699,2]
[314121790,1708002643117,-2550.39363907,0.00037699,2]
[314121791,1708002643129,-24.06420527,0.00037699,2]
[314121792,1708002643138,-154.58,0.000377,3]
[314121793,1708002643147,-334.99,0.000377,3]
[314121795,1708002643156,-209.86818469,0.000377,3]
[314121797,1708002643167,-125.12181531,0.000377,3]
[314121798,1708002643177,-284.67273987,0.000377,3]
[314121799,1708002643196,-50.31726013,0.000377,3]
[314121800,1708002643206,-334.99,0.000377,3]
[314121801,1708002643216,-334.99,0.000377,3]
[314121802,1708002643225,-309.37829486,0.000377,3]
[314121803,1708002643236,-25.61170514,0.000377,3]
[314121804,1708002643245,-243.4554369,0.000377,3]
[314121805,1708002643257,-91.5345631,0.000377,3]
[314121806,1708002643266,-334.99,0.000377,3]
[314121807,1708002643276,-115.36022771,0.000377,3]
[314121813,1708002645970,-219.62977229,0.000377,3]
[314121814,1708002645980,-334.99,0.000377,3]
[314121815,1708002645989,-334.99,0.000377,3]
[314121816,1708002645999,-334.99,0.000377,3]
[314121817,1708002646009,-334.99,0.000377,3]
[314121818,1708002646018,-334.99,0.000377,3]
[314121819,1708002646028,-334.99,0.000377,3]
[314121820,1708002646038,-334.99,0.000377,3]
[314121821,1708002646048,-334.99,0.000377,3]
[314121822,1708002646057,-334.99,0.000377,3]
[314121823,1708002646066,-334.99,0.000377,3]
[314121824,1708002646075,-334.99,0.000377,3]
[314121825,1708002646085,-1100.83,0.00037765,2]
[314121826,1708002646094,-701.3611,0.0003779,2]
[314121827,1708002646103,-772.65283522,0.000378,8]
[314121828,1708002646112,-2612.05552505,0.00037805,2]
[314121829,1708002646122,-870.73,0.0003785,2]
[314121830,1708002646131,-4075.45,0.00037873,2]
[314121831,1708002646140,-1510.35810871,0.00037873,30]
[314121832,1708002646152,-92.61189129,0.00037873,30]
[314121833,1708002646162,-739.9711536,0.00037879,2]
[314121834,1708002646172,-8202.41010372,0.00037879,2]
[314121835,1708002646183,-3378.80629075,0.00037879,2]
[314121836,1708002646195,-990.7898335,0.00037879,2]
[314121837,1708002646209,-736.19737716,0.00037879,2]
[314121838,1708002646273,-3158.51142533,0.000376,2]
[314121839,1708002646283,-1294.61605476,0.00037879,2]
[314121840,1708002646292,-162.60781056,0.0003789,2]
[314121841,1708002646301,-189.50794752,0.00037897,2]
[314121842,1708002646312,-285.62470339,0.00037897,2]
[314121843,1708002646322,-560.65039302,0.000379,2]
[314121844,1708002646334,-4572.52516995,0.000379,2]
[314121845,1708002646346,-299.33406665,0.000379,2]
[314121846,1708002646363,-18354.4963562,0.000379,2]
[314121847,1708002646383,-48469.68688834,0.000379,2]
[314121848,1708002646406,-46367.08491327,0.000379,2]
[314121849,1708003002846,-151.10183506,0.00033,30]
[314121850,1708003002870,-233.2004,0.00033875,2]
[314121851,1708003002896,-3328.99683549,0.00033975,10]
[314121852,1708003002918,-2581.0,0.000355,3]
[314121853,1708003002941,-1093.0,0.00035599,2]
[314121854,1708003002964,-14663.0,0.000356,3]
[314121855,1708003002986,-3000.0,0.00036,2]
[314121856,1708003003011,-299.0,0.0003623,2]
[314121857,1708003003036,-23900.0,0.00036603,2]
[314121858,1708003003063,-225.0,0.00036631,4]
[314121859,1708003003087,-250.0,0.00036793,2]
[314121860,1708003003111,-250.0,0.00036828,111]
[314121861,1708003003135,-244.41,0.00036894,2]
[314121862,1708003003159,-2983.7818,0.000369,2]
[314121863,1708003003185,-876.7555,0.000369,2]
[314121864,1708003003210,-520.0,0.00036935,2]
[314121865,1708003003237,-45400.75362945,0.00037,7]
[314121866,1708003005131,-54599.24637055,0.00037,7]
[314121871,1708003639517,-2393.0227476,0.00033975,10]
[314121872,1708003639541,-715.98368831,0.00033975,10]
[314121873,1708003639563,-612.86,0.00034238,2]
[314121874,1708003639585,-440.33,0.00036092,2]
[314121875,1708003639608,-1766.33,0.00036151,2]
[314121876,1708003639631,-250.0,0.00036188,111]
[314121877,1708003639653,-250.0,0.00036188,2]
[314121878,1708003639675,-23900.0,0.00036209,2]
[314121879,1708003639697,-250.0,0.00036265,2]
[314121880,1708003639721,-580.48,0.00036281,2]
[314121881,1708003639745,-150.0,0.00036379,2]
[314121882,1708003639769,-206.58,0.00036401,2]
[314121883,1708003639793,-162.08,0.0003642,2]
[314121884,1708003639814,-584.0,0.0003642,2]
[314121885,1708003639837,-195.34,0.00036432,2]
[314121886,1708003639861,-2000.0,0.00036487,2]
[314121887,1708003639885,-612.86,0.00036501,2]
[314121888,1708003639907,-158.09379814,0.00036522,2]
[314121889,1708003639932,-213.71482899,0.00036587,4]
[314121890,1708003639958,-500.0,0.00036622,2]
[314121891,1708003639982,-150.0,0.00036694,2]
[314121892,1708003640005,-206.0,0.00036726,2]
[314121893,1708003640028,-162.08,0.00036751,2]
[314121894,1708003640050,-155.0,0.000368,2]
[314121895,1708003640074,-150.0,0.00036856,2]
[314121896,1708003640098,-311.22,0.00036965,2]
[314121897,1708003640119,-514.43821045,0.00037,30]
[314121898,1708003640144,-150.0,0.00037032,2]
[314121899,1708003640167,-162.08,0.00037082,2]
[314121911,1708003831959,-262.0,0.0003623,2]
[314121912,1708003831969,-155.0,0.0003653,2]
[314121913,1708003831978,-986.45,0.00036853,2]
[314121914,1708003831999,-1013.55,0.00036853,2]
[314121915,1708003832009,-156.29335066,0.00036897,2]
[314121916,1708003832018,-53956.84049544,0.00037,7]
[314121917,1708003832078,-522.49413892,0.00037,7]
[314121918,1708003832104,-1238.33836806,0.00037,7]
[314121919,1708003832117,-446.51164892,0.00037,7]
[314121920,1708003832142,-438.73888158,0.00037,7]
[314121924,1708003832815,-43397.07646708,0.00037,7]
[314121925,1708003832824,-1000.0,0.000373,2]
[314121926,1708003832834,-207.7,0.00037317,2]
[314121927,1708003832846,-162.08,0.00037413,2]
[314121928,1708003832855,-440.33,0.00037428,2]
[314121929,1708003832865,-12072.74979436,0.0003753,2]
[314121930,1708003832874,-150.0,0.00037625,2]
[314121931,1708003832883,-158.09379812,0.00037643,2]
[314121932,1708003832894,-517.97980752,0.0003769,2]
[314121933,1708003832903,-5372.8348,0.0003769,2]
[314121934,1708003832912,-875.6893,0.0003769,2]
[314121935,1708003832921,-676.0712308,0.00037695,8]
[314121936,1708003832931,-154.58,0.000377,3]
[314121937,1708003832942,-3535.1159,0.000377,2]
[314121938,1708003832951,-268.02,0.000377,3]
[314121939,1708003832960,-268.02,0.000377,3]
[314121940,1708003832973,-268.02,0.000377,3]
[314121941,1708003832983,-268.02,0.000377,3]
[314121942,1708003832993,-268.02,0.000377,3]
[314121943,1708003833005,-268.02,0.000377,3]
[314121944,1708003833015,-268.02,0.000377,3]
[314121945,1708003833026,-268.02,0.000377,3]
[314121946,1708003833036,-268.02,0.000377,3]
[314121947,1708003833047,-268.02,0.000377,3]
[314121948,1708003833058,-268.02,0.000377,3]
[314121949,1708003833069,-268.02,0.000377,3]
[314121950,1708003833079,-268.02,0.000377,3]
[314121951,1708003833090,-268.02,0.000377,3]
[314121952,1708003833100,-268.02,0.000377,3]
[314121953,1708003833110,-268.02,0.000377,3]
[314121954,1708003833119,-268.02,0.000377,3]
[314121955,1708003833128,-268.02,0.000377,3]
[314121956,1708003833138,-268.02,0.000377,3]
[314121957,1708003833149,-268.02,0.000377,3]
[314121958,1708003833159,-162.08,0.00037744,2]
[314121959,1708003833168,-53660.8176432,0.0003778,10]
[314121960,1708003833177,-17965.3507382,0.00037788,10]
[314121961,1708003833186,-49533.0624398,0.0003779,10]
[314121962,1708003833196,-271.01301759,0.0003779,2]
[314121963,1708003833205,-245000.0,0.0003779,2]
[314121964,1708003833216,-2481.45274875,0.00037795,2]
[314121965,1708003833229,-155.0,0.000378,2]
[314121966,1708003833240,-100000.0,0.000378,2]
[314121967,1708003833258,-2236.0615,0.000378,2]
[314121968,1708003833267,-164.60010223,0.00037824,2]
[314121969,1708003833280,-12383.26561,0.00037863,10]
[314121970,1708003833290,-19999.99,0.00037873,2]
[314121971,1708003833299,-150.0,0.00037874,2]
[314121972,1708003833309,-150.0,0.00037874,2]
[314121973,1708003833318,-392.11016101,0.00037879,2]
[314121974,1708003833327,-28894.2864232,0.0003788,10]
[314121975,1708003833337,-4127.75520332,0.00037887,10]
[314121976,1708003833347,-490.21622713,0.00037887,2]
[314121977,1708003833356,-61916.3280498,0.0003789,10]
[314121978,1708003833366,-150.0,0.00037895,2]
[314121979,1708003833376,-412.62765314,0.00037897,2]
[314121980,1708003833385,-160.00503469,0.00037897,2]
[314121981,1708003833394,-2342.321592,0.00037897,2]
[314121982,1708003833404,-308.54054996,0.00037897,2]
[314121983,1708003833414,-153.55925512,0.000379,2]
[314121984,1708003833423,-4358.59140065,0.000379,11]
[314121985,1708003833433,-2753.14412,0.000379,2]
[314121986,1708003833443,-157.30314006,0.000379,2]
[314121987,1708003833454,-191100.645225,0.000379,2]
[314121988,1708003833464,-580.48,0.00037925,2]
[314121989,1708003833473,-151.94,0.00037935,2]
[314121990,1708003833482,-271.01301759,0.00037969,2]
[314121991,1708003833491,-490.21622713,0.00037977,2]
[314121992,1708003833501,-349785.072424,0.00037979,2]
[314121997,1708003838049,-274.45,0.000379,3]
[314121998,1708003838061,-280.8752,0.000379,3]
[314121999,1708003838073,-263.85947574,0.000379,3]
[314122000,1708003838085,-10.90416324,0.000379,3]
[314122001,1708003838094,-11334.14340593,0.00037979,5]
[314122002,1708003838114,-1241.64267898,0.00037979,5]
[314122003,1708003838126,-596.04655466,0.00037979,5]
[314122004,1708003838344,-261.99836,0.00037979,5]
[314122011,1708003841822,-11749.00529153,0.00037979,5]
[314122012,1708003841937,-396.09,0.00037979,5]
[314122125,1708003843065,-2044.92824102,0.00037979,5]
[314122144,1708003843236,-14324.27499699,0.00037979,5]
[314122146,1708003843248,-14994.39580986,0.00037979,5]
[314122249,1708003846121,-1461.814397,0.00037979,5]
[314122251,1708003846133,-40517.78102468,0.00037979,5]
[314122258,1708003846237,-2613.89999997,0.00037979,5]
[314122259,1708003846249,-944.27135291,0.00037979,5]
[314122260,1708003846260,-3436.91126889,0.00037979,5]
[314122261,1708003846353,-1952.08083824,0.00037979,5]
[314122283,1708005032178,-150.0,0.00031,2]
[314122284,1708005032187,-234.3878097,0.00032774,2]
[314122287,1708005032293,-470.1221903,0.00032774,2]
[314122288,1708005032303,-157.49298269,0.00033885,2]
[314122289,1708005032313,-155.0,0.00033888,2]
[314122290,1708005032322,-113.84659678,0.00033984,3]
[314122291,1708005032362,-186.15340322,0.00033984,3]
[314122292,1708005032373,-257.26924249,0.00033984,2]
[314122293,1708005032385,-956.23752668,0.00033984,2]
[314122294,1708005032397,-636.00966495,0.00033984,2]
[314122316,1708005038137,-638.89389986,0.00033984,2]
[314122318,1708005038149,-639.38719777,0.00033984,2]
[314122319,1708005038161,-1321.99917736,0.00033984,2]
[314122320,1708005038172,-1506.543848,0.00033984,2]
[314122321,1708005038195,-698.90040917,0.00033984,2]
[314122322,1708005038206,-5217.212,0.00033984,2]
[314122323,1708005038376,-1760.92787026,0.00033984,2]
[314122324,1708005038388,-1704.77468899,0.00033984,2]
[314122325,1708005038400,-313.27,0.00033984,2]
[314122326,1708005038435,-18479.38190678,0.00033984,2]
[314122327,1708005038445,-150.9385784,0.00033985,2]
[314122328,1708005038454,-150.9385784,0.00033985,2]
[314122329,1708005038463,-150.9385784,0.00033985,2]
[314122330,1708005038473,-189.15690421,0.00033985,10]
[314122331,1708005038482,-150.0,0.00033985,2]
[314122332,1708005038492,-1076.86023642,0.00034016,10]
[314122333,1708005038501,-2039.49449764,0.00034027,10]
[314122334,1708005038680,-250.0,0.00034237,2]
[314122335,1708005038689,-2603.13505894,0.00034297,2]
[314122336,1708005038702,-3322.59106912,0.00034297,2]
[314122337,1708005038713,-1884.93321368,0.00034297,2]
[314122338,1708005038725,-16089.34065826,0.00034297,2]
[314122339,1708005038734,-250.0,0.00034349,111]
[314122340,1708005038743,-1712.38,0.00034383,2]
[314122341,1708005038753,-244.41,0.00034473,2]
[314122342,1708005038762,-150.1,0.00034552,2]
[314122343,1708005038771,-2000.0,0.00034589,2]
[314122344,1708005038780,-150.0,0.00034678,2]
[314122345,1708005038789,-167.73,0.00034784,2]
[314122346,1708005038798,-1860.4,0.00034888,2]
[314122347,1708005038807,-1500.16,0.00035024,2]
[314122348,1708005038816,-704.51,0.00035038,2]
[314122349,1708005038826,-152.59,0.00035126,2]
[314122350,1708005038835,-155.0,0.00035258,2]
[314122351,1708005038844,-250.0,0.00035302,2]
[314122352,1708005038854,-151.75,0.00035328,2]
[314122353,1708005038863,-6670.21552196,0.00035349,2]
[314122354,1708005038875,-13530.0,0.000356,3]
[314122355,1708005038884,-152.59,0.00035828,2]
[314122356,1708005038894,-2750.40584016,0.00035899,2]
[314122357,1708005038903,-153.51682497,0.00035899,2]
[314122358,1708005038912,-6802.88731729,0.00035899,8]
[314122359,1708005038922,-28222.90937559,0.000359,2]
[314122360,1708005038931,-157.49298269,0.000359,2]
[314122361,1708005038940,-3332.02769528,0.000359,2]
[314122362,1708005038951,-510.95087199,0.000359,2]
[314122363,1708005038960,-591.56232695,0.000359,7]
[314122364,1708005038969,-275.08510208,0.000359,2]
[314122365,1708005038979,-706.16552228,0.000359,2]
[314122366,1708005038988,-4127.7552034,0.00035989,9]
[314122367,1708005038997,-271.01301759,0.0003599,2]
[314122368,1708005039006,-2009.9584884,0.00035997,2]
[314122369,1708005039016,-4685.85,0.00035999,2]
[314122370,1708005039025,-5727.15,0.00035999,2]
[314122371,1708005039034,-100000.0,0.00036,6]
[314122372,1708005039043,-1223487.85133624,0.00036,5]
[314122373,1708005039052,-1020268.67168271,0.00036,2]
[314122374,1708005039061,-150.0,0.00036,2]
[314122375,1708005039071,-227.64625164,0.00036,2]
[314122376,1708005039080,-9626.47282124,0.00036,2]
[314122377,1708005039089,-731.61,0.00036,7]
[314122378,1708005039097,-187.90778278,0.00036,2]
[314122379,1708005039107,-1712.38,0.00036027,2]
[314122380,1708005039115,-1860.4,0.00036179,2]
[314122381,1708005039125,-272.0,0.0003623,2]
[314122382,1708005039134,-151.75,0.00036249,2]
[314122383,1708005039144,-6802.88731718,0.00036312,9]
[314122384,1708005039153,-259.35,0.00036317,2]
[314122385,1708005039163,-204.41,0.00036438,2]
[314122386,1708005039173,-241.18049054,0.00036486,4]
[314122387,1708005039183,-152.59,0.00036531,2]
[314122388,1708005039192,-591.56232695,0.00036532,8]
[314122389,1708005039203,-237.4609211,0.00036544,4]
[314122390,1708005039215,-2750.40584011,0.00036566,2]
[314122391,1708005039224,-28222.9093755,0.00036567,2]
[314122392,1708005039234,-202.5,0.00036575,4]
[314122393,1708005039244,-205.0,0.00036605,2]
[314122394,1708005039253,-153.51682494,0.00036641,2]
[314122395,1708005039262,-731.61,0.000367,7]
[314122396,1708005039271,-6802.88731718,0.00036726,9]
[314122397,1708005039280,-669.9861628,0.00036896,2]
[314122398,1708005039290,-500.0,0.00036899,15]
[314122399,1708005039299,-500.0,0.00036899,15]
[314122400,1708005039308,-500.0,0.00036899,15]
[314122401,1708005039318,-500.0,0.00036899,15]
[314122402,1708005039327,-500.0,0.00036899,15]
[314122403,1708005039336,-500.0,0.00036899,15]
[314122404,1708005039345,-500.0,0.00036899,15]
[314122405,1708005039355,-500.0,0.00036899,15]
[314122406,1708005039363,-500.0,0.00036899,15]
[314122407,1708005039374,-500.0,0.00036899,15]
[314122408,1708005039383,-152.4114712,0.00036899,15]
[314122409,1708005039392,-500.0,0.00036899,15]
[314122410,1708005039401,-227.04351082,0.00036899,15]
[314122411,1708005039410,-500.0,0.00036899,15]
[314122412,1708005039419,-500.0,0.00036899,15]
[314122413,1708005039428,-500.0,0.00036899,15]
[314122414,1708005039437,-500.0,0.00036899,15]
[314122415,1708005039446,-500.0,0.00036899,15]
[314122416,1708005039455,-500.0,0.00036899,15]
[314122418,1708005039464,-500.0,0.00036899,15]
[314122419,1708005039473,-500.0,0.00036899,15]
[314122420,1708005039482,-500.0,0.00036899,15]
[314122421,1708005039493,-500.0,0.00036899,15]
[314122423,1708005039502,-500.0,0.00036899,15]
[314122425,1708005039511,-532.80760556,0.00036899,3]
[314122426,1708005039520,-3622.7841,0.000369,2]
[314122427,1708005039529,-133865.7948,0.000369,2]
[314122428,1708005039538,-158.29197513,0.000369,9]
[314122429,1708005039548,-112331.6,0.000369,30]
[314122430,1708005039558,-112331.6,0.000369,2]
[314122431,1708005039567,-150.0,0.00036986,2]
[314122432,1708005039576,-300.0,0.00036986,7]
[314122433,1708005039585,-450.0,0.00036986,12]
[314122434,1708005039594,-600.0,0.00036986,17]
[314122435,1708005039603,-170.23847736,0.00036986,22]
[314122436,1708005039613,-669.9861628,0.00036997,2]
[314122437,1708005039624,-1000.0,0.00036999,2]
[314122438,1708005039633,-100000.0,0.00037,7]
[314122439,1708005039643,-1000.0,0.00037,2]
[314122440,1708005039652,-282697.42287415,0.00037,2]
[314122441,1708005039885,-275794.3785101,0.00037,2]
[314122442,1708005039897,-2614.7562519,0.00037,2]
[314122444,1708005040767,-1811.63303534,0.000369,2]
[314122445,1708005040779,-53.04656615,0.000369,2]
[314122446,1708005040788,-302.27343385,0.00037,2]
[314122447,1708005040799,-2260.5,0.00037,2]
[314122448,1708005040823,-443.0644103,0.00037,2]
[314122449,1708005040835,-501.7001713,0.00037,2]
[314122450,1708005040886,-500.0,0.00037,2]
[314122451,1708005040899,-2671.99622207,0.00037,2]
[314122452,1708005040912,-9418.99411932,0.00037,2]
[314122453,1708005040944,-982.67997406,0.00037,2]
[314122454,1708005040955,-1024.22168571,0.00037,2]
[314122455,1708005041031,-403.47012699,0.00037,2]
[314122456,1708005041043,-498.1733841,0.00037,2]
[314122457,1708005041055,-1548.09643358,0.00037,2]
[314122458,1708005041068,-3103.72225,0.00037,2]
[314122459,1708005041080,-531.06,0.00037,2]
[314122462,1708005043167,-1000.0,0.00036718,2]